[Event "DEN-chT XtraCon 2018-19"]
[Site "Denmark"]
[Date "2019.03.16"]
[Round "8"]
[White "Sahl, Bjarke"]
[Black "Rewitz, Poul"]
[Result "1-0"]
[ECO "B30"]
[WhiteElo "2322"]
[BlackElo "2227"]
[Annotator "NA"]
[PlyCount "75"]
[EventDate "2018.10.27"]
[EventType "team-tourn"]
[EventCountry "DEN"]
[SourceTitle "playchess.com"]
[Source "ChessBase"]
[SourceQuality "1"]
[TimeControl "40/5400+30:1800+30"]

1. e4 {[%emt 0:00:00]} c5 {[%emt 0:00:00]} 2. Nf3 {[%emt 0:00:08]} Nc6 {[%emt 0:00:04]} 3. c3 {[%emt 0:03:14]} d5 {[%emt 0:00:56]} 4. exd5 {[%emt 0:00:04]} Qxd5 {[%emt 0:00:07]} 5. d4 {[%emt 0:00:02]} Bf5 {[%emt 0:02:00]} 6. Be3 {[%emt 0:08:26]} Nf6 {[%emt 0:06:07] B22: Sicilian: 2 c3} (6... cxd4 7. Nxd4 Nf6 8. Nxf5 Qxf5 9. Bd3 Qd5 10. O-O O-O-O 11. Be2 Qxd1 12. Rxd1 Rxd1+ 13. Bxd1 Nd5 14. Bc1 {½-½ (41) Yeoh,L (2508)-Lagarde,M (2616) Stockholm 2018}) 7. c4 {[%emt 0:10:34]} Qd8 {[%emt 0:06:54]} 8. Nc3 {[%emt 0:04:38]} cxd4 {[%emt 0:08:40]} 9. Nxd4 {[%emt 0:00:07]} Nxd4 {[%emt 0:17:28]} 10. Qxd4 {[%emt 0:02:28]} Qxd4 {[%emt 0:05:10]} 11. Bxd4 {[%emt 0:00:04]} e6 {[%emt 0:02:59]} 12. a3 $146 {[%emt 0:00:53]} ({Predecessor:} 12. O-O-O a6 13. Bd3 Bxd3 14. Rxd3 {0-1 (63) Novikov,R (1992)-Glukhov,A (2236) Kazan 2018}) 12... Bd6 {[%emt 0:08:04]} 13. h3 {[%emt 0:04:16]} O-O {[%emt 0:02:03]} 14. g4 {[%emt 0:14:44]} Bc2 {[%emt 0:07:17]} 15. Bg2 {[%emt 0:09:00]} Rac8 {[%emt 0:03:07]} 16. Bxa7 {[%emt 0:10:05]} Rxc4 {[%emt 0:01:36]} 17. O-O {[%emt 0:01:10]} h5 {[%emt 0:01:53]} 18. Rfc1 {[%emt 0:05:33]} Bg6 {[%emt 0:01:45]} 19. g5 {[%emt 0:05:35]} Nh7 {[%emt 0:00:26]} 20. Be3 {[%emt 0:00:09]} Bf4 {[%emt 0:02:06]} 21. Nd5 {[%emt 0:01:25]} Rxc1+ {[%emt 0:03:48]} (21... exd5 $11 22. Rxc4 Bxe3 23. Bxd5 Bxg5 24. Bxb7 Bf6) 22. Rxc1 {[%emt 0:01:33]} Bxg5 {[%emt 0:02:32]} 23. Bxg5 {[%emt 0:00:21]} Nxg5 {[%emt 0:00:30]} 24. Ne7+ {[%emt 0:00:10]} Kh7 {[%emt 0:00:16]} 25. h4 $18 {[%emt 0:00:13]} Be4 {[%emt 0:11:45]} 26. hxg5 {[%emt 0:00:12]} Bxg2 {[%emt 0:00:19]} 27. Kxg2 {[%emt 0:00:04]} Rd8 {[%emt 0:00:40]} 28. Rc7 {[%emt 0:02:31]} b6 {[%emt 0:00:19]} 29. Rb7 {[%emt 0:02:51]} Rd6 {[%emt 0:00:35]} 30. b4 {[%emt 0:00:40]} Rd3 {[%emt 0:01:56]} 31. a4 {[%emt 0:01:17]} Ra3 {[%emt 0:00:24]} 32. Ra7 {[%emt 0:02:53]} e5 {[%emt 0:01:27]} 33. b5 {[%emt 0:01:18]} e4 {[%emt 0:02:05]} 34. a5 {[%emt 0:03:17]} bxa5 {[%emt 0:00:31]} 35. b6 {[%emt 0:00:03]} Rb3 {[%emt 0:00:24]} 36. b7 {[%emt 0:00:16]} Rb2 {[%emt 0:00:51]} 37. g6+ {[%emt 0:02:10]} fxg6 {[%emt 0:00:13]} 38. Nc6 {[%emt 0:00:18]} 1-0

[Event "DEN-chT XtraCon 2018-19"]
[Site "Denmark"]
[Date "2019.03.16"]
[Round "8"]
[White "Kristensen, Leif"]
[Black "Jepson, Christian"]
[Result "0-1"]
[ECO "C24"]
[WhiteElo "2309"]
[BlackElo "2391"]
[Annotator "NA"]
[PlyCount "60"]
[EventDate "2018.10.27"]
[EventType "team-tourn"]
[EventCountry "DEN"]
[SourceTitle "playchess.com"]
[Source "ChessBase"]
[SourceQuality "1"]
[TimeControl "40/5400+30:1800+30"]

1. e4 {[%emt 0:00:00]} e5 {[%emt 0:00:00]} 2. Bc4 {[%emt 0:00:38]} Nf6 {[%emt 0:00:00]} 3. d3 {[%emt 0:00:06]} c6 {[%emt 0:00:09]} 4. Nf3 {[%emt 0:00:43]} d5 {[%emt 0:00:22]} 5. Bb3 {[%emt 0:00:26]} a5 {[%emt 0:00:06]} 6. a3 {[%emt 0:03:12] C24: Bishop's Opening: 2...Nf6} (6. a4 Bb4+ 7. c3 Bd6 8. Bg5 dxe4 9. dxe4 h6 10. Bh4 O-O 11. O-O Na6 12. Nbd2 Qe7 13. Nc4 Bc7 {½-½ (30) Karjakin,S (2760)-Wei,Y (2739) Medias 2017}) 6... a4 {[%emt 0:00:08]} 7. Ba2 {[%emt 0:00:12]} Bd6 {[%emt 0:00:10]} 8. Nc3 {[%emt 0:03:49]} Be6 {[%emt 0:00:56]} 9. O-O {[%emt 0:16:41]} O-O {[%emt 0:01:01]} 10. Bg5 {[%emt 0:05:55]} d4 {[%emt 0:02:25]} 11. Ne2 {[%emt 0:01:16]} h6 {[%emt 0:03:44]} 12. Bh4 {[%emt 0:01:25]} c5 $146 {[%emt 0:14:03]} ({Predecessor:} 12... Nbd7 13. Ne1 g5 14. Bg3 Nc5 {½-½ (14) Staszko,M (2075)-Svoboda,P (1965) Ostrava 1998}) 13. Nd2 {[%emt 0:09:56]} Nc6 {[%emt 0:04:19]} 14. Bxe6 {[%emt 0:03:01]} fxe6 {[%emt 0:00:12]} 15. f4 {[%emt 0:00:03]} exf4 {[%emt 0:00:57]} 16. Bxf6 {[%emt 0:04:17]} Rxf6 {[%emt 0:04:08]} 17. c3 {[%emt 0:01:43]} e5 {[%emt 0:24:19]} 18. cxd4 {[%emt 0:01:10]} exd4 {[%emt 0:01:22]} 19. Rc1 {[%emt 0:04:16]} Qe7 {[%emt 0:03:02]} 20. h3 {[%emt 0:05:16]} Ne5 {[%emt 0:08:11]} 21. Nf3 {[%emt 0:02:15]} b5 {[%emt 0:00:40]} 22. Kh1 {[%emt 0:01:21]} Nxf3 {[%emt 0:06:44]} 23. Rxf3 {[%emt 0:00:05]} Qe6 $17 {[%emt 0:10:43]} 24. Qd2 {[%emt 0:03:18]} g5 {[%emt 0:00:36]} 25. Rcf1 {[%emt 0:02:03]} Be5 {[%emt 0:00:25]} 26. Ng1 {[%emt 0:01:23]} h5 {[%emt 0:04:24]} 27. h4 {[%emt 0:01:41]} g4 {[%emt 0:00:28]} 28. Rxf4 {[%emt 0:00:18]} Bxf4 {[%emt 0:00:15]} 29. Rxf4 {[%emt 0:00:02]} Raf8 {[%emt 0:00:21]} 30. Ne2 {[%emt 0:00:41]} g3 {[%emt 0:01:48]} 0-1

[Event "DEN-chT XtraCon 2018-19"]
[Site "Denmark"]
[Date "2019.03.16"]
[Round "8"]
[White "Pedersen, Nicolai Kvist Brond"]
[Black "Antonsen, Mikkel"]
[Result "1-0"]
[ECO "A48"]
[WhiteElo "2298"]
[BlackElo "2435"]
[Annotator "ChessBase"]
[PlyCount "69"]
[EventDate "2018.10.27"]
[EventType "team-tourn"]
[EventCountry "DEN"]
[SourceTitle "playchess.com"]
[Source "ChessBase"]
[SourceQuality "1"]
[TimeControl "40/5400+30:1800+30"]

1. d4 {[%emt 0:00:00]} Nf6 {[%emt 0:00:00]} 2. Nf3 {[%emt 0:00:00]} g6 {[%emt 0:00:27]} 3. c4 {[%emt 0:00:00]} Bg7 {[%emt 0:00:05]} 4. g3 {[%emt 0:00:00]} c6 {[%emt 0:00:12]} 5. Nc3 {[%emt 0:00:18]} d5 {[%emt 0:00:05]} 6. cxd5 {[%emt 0:00:15]} cxd5 {[%emt 0:00:05]} 7. Bg2 {[%emt 0:01:06]} O-O {[%emt 0:00:17]} 8. Ne5 {[%emt 0:00:16]} Bf5 {[%emt 0:05:01]} 9. O-O {[%emt 0:02:00]} Ne4 {[%emt 0:01:44]} 10. Qb3 {[%emt 0:05:31]} Nc6 {[%emt 0:06:51]} 11. Rd1 {[%emt 0:20:34]} Nxc3 {[%emt 0:04:48]} 12. bxc3 {[%emt 0:05:21]} Nxe5 {[%emt 0:01:05]} 13. dxe5 {[%emt 0:00:06]} Qc7 {[%emt 0:07:47]} 14. f4 {[%emt 0:09:12]} Qc5+ {[%emt 0:01:25]} 15. Kf1 {[%emt 0:01:56]} Be4 {[%emt 0:05:20]} 16. Bxe4 {[%emt 0:03:34]} dxe4 {[%emt 0:00:05]} 17. Ba3 {[%emt 0:01:55]} Qc8 {[%emt 0:03:15]} 18. Rd4 {[%emt 0:10:59]} Qf5 {[%emt 0:06:07]} 19. Qd5 {[%emt 0:04:31]} e3 {[%emt 0:00:45]} 20. Bxe7 {[%emt 0:02:12]} Rfe8 {[%emt 0:00:14]} 21. Bd6 {[%emt 0:00:39]} Rac8 {[%emt 0:05:57]} 22. Rd3 {[%emt 0:01:41]} Qh5 {[%emt 0:13:14]} 23. Qg2 {[%emt 0:02:34]} Rc6 {[%emt 0:04:03]} 24. Rb1 {[%emt 0:03:10]} Ra6 {[%emt 0:06:23]} 25. a3 {[%emt 0:00:24]} Bf8 {[%emt 0:01:43]} 26. c4 {[%emt 0:05:47]} Bxd6 {[%emt 0:05:40]} 27. exd6 {[%emt 0:00:26]} Rc6 {[%emt 0:00:10]} 28. d7 {[%emt 0:03:04]} Rd8 {[%emt 0:00:03]} 29. Rxb7 {[%emt 0:01:12]} Rxc4 {[%emt 0:00:09]} 30. Rxe3 {[%emt 0:03:05]} Rc1+ {[%emt 0:06:14]} 31. Kf2 {[%emt 0:00:01]} Qa5 {[%emt 0:00:07]} 32. Re8+ {[%emt 0:03:30]} Kg7 {[%emt 0:00:05]} 33. Qf3 {[%emt 0:01:37]} Qe1+ {[%emt 0:08:03]} 34. Kg2 {[%emt 0:00:19]} Rc2 {[%emt 0:00:38]} 35. Rxd8 {[%emt 0:05:05]} 1-0

[Event "DEN-chT XtraCon 2018-19"]
[Site "Denmark"]
[Date "2019.03.16"]
[Round "8"]
[White "Thogersen, Rasmus"]
[Black "Borge, Nikolaj"]
[Result "0-1"]
[ECO "B40"]
[WhiteElo "2298"]
[BlackElo "2372"]
[Annotator "NA"]
[PlyCount "58"]
[EventDate "2018.10.27"]
[EventType "team-tourn"]
[EventCountry "DEN"]
[SourceTitle "playchess.com"]
[Source "ChessBase"]
[SourceQuality "1"]
[TimeControl "40/5400+30:1800+30"]

1. e4 {[%emt 0:00:00]} c5 {[%emt 0:00:00]} 2. Nf3 {[%emt 0:00:00]} e6 {[%emt 0:00:24]} 3. d4 {[%emt 0:00:00]} cxd4 {[%emt 0:00:05]} 4. Nxd4 {[%emt 0:00:00]} Nf6 {[%emt 0:00:30]} 5. Nc3 {[%emt 0:00:14]} Nc6 {[%emt 0:00:11]} 6. Ndb5 {[%emt 0:02:02]} Bb4 {[%emt 0:01:12]} 7. a3 {[%emt 0:00:05]} Bxc3+ {[%emt 0:00:05]} 8. Nxc3 {[%emt 0:00:04]} d5 {[%emt 0:00:06]} 9. exd5 {[%emt 0:00:03]} exd5 {[%emt 0:00:06]} 10. Bd3 {[%emt 0:00:05]} O-O {[%emt 0:00:36]} 11. O-O {[%emt 0:00:05]} d4 {[%emt 0:05:07]} 12. Ne2 {[%emt 0:00:11]} Bg4 {[%emt 0:03:14]} 13. Bg5 {[%emt 0:08:21]} h6 {[%emt 0:13:49] B45: Sicilian Four Knights} 14. Bh4 {[%emt 0:02:27]} Bxe2 {[%emt 0:02:17]} 15. Qxe2 {[%emt 0:07:02]} (15. Bxe2 Re8 16. Re1 Re4 17. Bg3 Qb6 18. b4 Rae8 19. Qd2 R4e7 20. Bf3 Ne4 21. Bxe4 Rxe4 22. Rxe4 Rxe4 {½-½ (53) Hovhannisyan,R (2621)-Kovalenko,I (2646) Tegernsee 2018}) 15... Re8 {[%emt 0:00:27]} 16. Qd2 {[%emt 0:00:33]} Ne4 {[%emt 0:18:17]} 17. Qf4 $146 {[%emt 0:24:51]} ({Predecessor:} 17. Bxe4 Qxh4 18. f3 Rad8 19. Rfe1 Ne5 20. b3 b6 21. Rad1 {½-½ (48) Ciuksyte,D (2327)-Porat,M (2299) Porto Carras 2011}) 17... g5 {[%emt 0:06:05]} 18. Qf5 {[%emt 0:09:10]} Re5 {[%emt 0:01:50]} 19. Qf3 {[%emt 0:01:10]} Nd2 {[%emt 0:03:26]} 20. Qh5 $19 {[%emt 0:03:35]} gxh4 {[%emt 0:13:20]} 21. Qxh6 {[%emt 0:00:06]} Ne4 {[%emt 0:01:25]} 22. f4 {[%emt 0:04:33]} Re6 {[%emt 0:00:44]} 23. Qh5 {[%emt 0:00:24]} Qf6 {[%emt 0:07:27]} 24. Rae1 {[%emt 0:08:19]} Rae8 {[%emt 0:04:46]} 25. Qg4+ {[%emt 0:10:14]} Qg7 {[%emt 0:04:43]} 26. Qxh4 {[%emt 0:00:43]} Nd2 {[%emt 0:03:34]} 27. f5 {[%emt 0:08:25]} Rxe1 {[%emt 0:00:33]} 28. Rxe1 {[%emt 0:00:33]} Nf3+ {[%emt 0:01:39]} 29. Kf2 {[%emt 0:00:08]} Nxe1 {[%emt 0:01:55]} 0-1

[Event "DEN-chT XtraCon 2018-19"]
[Site "Denmark"]
[Date "2019.03.16"]
[Round "8"]
[White "Matthiesen, Arne"]
[Black "Haubro, Martin"]
[Result "1/2-1/2"]
[ECO "D45"]
[WhiteElo "2290"]
[BlackElo "2358"]
[Annotator "NA"]
[PlyCount "122"]
[EventDate "2018.10.27"]
[EventType "team-tourn"]
[EventCountry "DEN"]
[SourceTitle "playchess.com"]
[Source "ChessBase"]
[SourceQuality "1"]
[TimeControl "40/5400+30:1800+30"]

1. d4 {[%emt 0:00:00]} d5 {[%emt 0:00:00]} 2. c4 {[%emt 0:00:00]} e6 {[%emt 0:00:00]} 3. Nf3 {[%emt 0:00:10]} Nf6 {[%emt 0:00:00]} 4. Nc3 {[%emt 0:00:29]} c6 {[%emt 0:00:00]} 5. e3 {[%emt 0:01:27]} Bd6 {[%emt 0:01:31]} 6. Be2 {[%emt 0:00:21]} Nbd7 {[%emt 0:02:29]} 7. O-O {[%emt 0:00:31]} O-O {[%emt 0:06:51]} 8. b3 {[%emt 0:00:20]} Ne4 {[%emt 0:01:22]} 9. Nxe4 {[%emt 0:08:36]} dxe4 {[%emt 0:00:03]} 10. Nd2 {[%emt 0:00:07]} f5 {[%emt 0:00:04]} 11. c5 {[%emt 0:06:54] D45: Semi-Slav: 5 e3} (11. Bb2 Qh4 12. g3 Qh6 13. Qc1 Nf6 14. Ba3 Bxa3 15. Qxa3 Bd7 16. Qd6 Rad8 17. h4 Bc8 18. Qe5 Nd7 19. Qf4 {0-1 (60) Teplyi,I (2422)-Grandelius,N (2647) Denmark 2016}) 11... Bc7 {[%emt 0:01:52]} 12. Nc4 {[%emt 0:06:29]} Nf6 {[%emt 0:24:19]} 13. f3 $146 {[%emt 0:18:08]} ({Predecessor:} 13. f4 exf3 14. Bxf3 Bd7 15. Qe2 Qb8 16. g3 Be8 17. Bd2 Qd8 18. Rad1 Bg6 {1-0 (60) Miles,A (2520)-Smagin,S (2540) Philadelphia 1989}) 13... Bd7 {[%emt 0:12:07]} 14. Qe1 {[%emt 0:04:04]} Be8 {[%emt 0:01:51]} 15. Bd2 {[%emt 0:03:55]} exf3 {[%emt 0:07:01]} 16. Bxf3 {[%emt 0:00:36]} Bh5 {[%emt 0:02:04]} 17. Ba5 {[%emt 0:03:30]} b6 {[%emt 0:11:03]} 18. cxb6 axb6 {[%emt 0:00:05]} 19. Bb4 {[%emt 0:02:11]} Bxf3 {[%emt 0:00:04]} 20. Bxf8 {[%emt 0:11:34]} Bxg2 {[%emt 0:00:04]} 21. Kxg2 {[%emt 0:00:08]} Kxf8 {[%emt 0:00:04]} 22. Qe2 {[%emt 0:02:49]} Kg8 {[%emt 0:02:48]} 23. a4 {[%emt 0:05:45]} Ng4 {[%emt 0:08:06]} 24. h3 {[%emt 0:01:32]} Nf6 {[%emt 0:00:47]} 25. Nd2 {[%emt 0:04:29]} Qd6 {[%emt 0:00:11]} 26. Rh1 {[%emt 0:04:35]} Qg3+ {[%emt 0:00:53]} 27. Kf1 {[%emt 0:00:39]} Nd5 {[%emt 0:00:21]} 28. Qf3 {[%emt 0:01:25]} Nxe3+ {[%emt 0:00:34]} 29. Ke2 {[%emt 0:00:02]} Nc2 {[%emt 0:00:09]} 30. Qxg3 {[%emt 0:00:56]} Bxg3 {[%emt 0:00:06]} 31. Rag1 {[%emt 0:01:24]} Bf4 {[%emt 0:11:43]} 32. Nf3 {[%emt 0:03:33]} b5 {[%emt 0:00:32]} 33. Kd3 {[%emt 0:05:24]} Nb4+ {[%emt 0:00:05]} 34. Kc3 {[%emt 0:00:05]} Nd5+ {[%emt 0:00:07]} 35. Kb2 {[%emt 0:00:08]} bxa4 {[%emt 0:00:58]} 36. Ra1 {[%emt 0:00:15]} Nb6 {[%emt 0:00:26]} 37. bxa4 {[%emt 0:01:03]} Rxa4 {[%emt 0:00:43]} 38. Rxa4 {[%emt 0:01:11]} Nxa4+ {[%emt 0:00:04]} 39. Kb3 {[%emt 0:02:38]} Nb6 {[%emt 0:00:04]} 40. Ra1 {[%emt 0:02:05]} g5 {[%emt 0:03:09] [#]} 41. Nxg5 $1 {[%emt 0:05:53]} Bxg5 {[%emt 0:00:39]} 42. Rg1 {[%emt 0:00:10]} h6 {[%emt 0:01:35]} 43. h4 {[%emt 0:00:01]} Kf7 {[%emt 0:14:03]} 44. hxg5 {[%emt 0:00:02]} h5 {[%emt 0:00:06]} 45. g6+ {[%emt 0:01:31]} Kg7 {[%emt 0:00:05]} 46. Re1 {[%emt 0:00:20]} Kxg6 {[%emt 0:05:54]} 47. Rxe6+ {[%emt 0:00:01]} Kg5 {[%emt 0:00:06]} 48. Rxc6 {[%emt 0:00:10]} Nd7 {[%emt 0:00:08]} 49. Rc7 {[%emt 0:05:01]} Nf6 {[%emt 0:00:20]} 50. Rg7+ {[%emt 0:00:23]} Kf4 {[%emt 0:00:06]} 51. Rg6 {[%emt 0:09:07]} Ne4 {[%emt 0:00:04]} 52. d5 {[%emt 0:02:48]} h4 {[%emt 0:00:05]} 53. Kc4 {[%emt 0:03:08]} h3 {[%emt 0:00:40]} 54. Rh6 {[%emt 0:00:48]} Kg3 {[%emt 0:00:17]} 55. Kd4 {[%emt 0:00:39]} h2 {[%emt 0:01:52]} 56. Ke5 {[%emt 0:02:05]} Kg2 $11 {[%emt 0:04:42]} 57. Kxf5 {[%emt 0:02:07]} Nd6+ {[%emt 0:00:20]} 58. Ke6 {[%emt 0:00:39]} Nc4 {[%emt 0:00:06]} 59. d6 {[%emt 0:00:25]} Nxd6 {[%emt 0:00:04]} 60. Kxd6 {[%emt 0:00:01]} h1=Q {[%emt 0:00:08]} 61. Rxh1 {[%emt 0:00:03]} Kxh1 {[%emt 0:00:06]} 1/2-1/2

[Event "DEN-chT XtraCon 2018-19"]
[Site "Denmark"]
[Date "2019.03.16"]
[Round "8"]
[White "Sobjerg, Erik"]
[Black "Palm, Nikolaj"]
[Result "1-0"]
[ECO "C28"]
[WhiteElo "2266"]
[BlackElo "2286"]
[Annotator "NA"]
[PlyCount "77"]
[EventDate "2018.10.27"]
[EventType "team-tourn"]
[EventCountry "DEN"]
[SourceTitle "playchess.com"]
[Source "ChessBase"]
[SourceQuality "1"]
[TimeControl "40/5400+30:1800+30"]

1. e4 {[%emt 0:00:00]} e5 {[%emt 0:00:00]} 2. Bc4 {[%emt 0:00:00]} Nc6 {[%emt 0:00:08]} 3. Nc3 {[%emt 0:00:14]} Nf6 {[%emt 0:03:22]} 4. d3 {[%emt 0:00:06]} Bc5 {[%emt 0:00:27]} 5. f4 {[%emt 0:00:11]} d6 {[%emt 0:00:14]} 6. Nf3 {[%emt 0:00:04]} a6 {[%emt 0:02:34]} 7. Rf1 {[%emt 0:02:12]} O-O {[%emt 0:21:30]} 8. f5 {[%emt 0:20:15]} Na5 {[%emt 0:10:26]} 9. Bg5 {[%emt 0:02:22]} Nxc4 {[%emt 0:02:19]} 10. dxc4 {[%emt 0:00:44]} Bb4 {[%emt 0:01:25]} 11. Qd3 {[%emt 0:11:02]} Bxc3+ {[%emt 0:07:25]} 12. Qxc3 {[%emt 0:06:19]} b5 {[%emt 0:02:39]} 13. Bxf6 {[%emt 0:08:33]} Qxf6 {[%emt 0:01:24]} 14. g4 {[%emt 0:07:39]} Qh6 {[%emt 0:10:41]} 15. g5 {[%emt 0:01:58]} Qh3 {[%emt 0:00:57]} 16. Rg1 {[%emt 0:05:52]} Bb7 $14 {[%emt 0:02:19]} 17. Qe3 {[%emt 0:02:40]} bxc4 {[%emt 0:00:28]} 18. Rg3 {[%emt 0:02:52]} Qh5 {[%emt 0:00:02]} 19. O-O-O {[%emt 0:00:24]} Rad8 {[%emt 0:06:27]} 20. Rdg1 {[%emt 0:11:40]} d5 {[%emt 0:03:03]} 21. Nxe5 {[%emt 0:05:21]} d4 {[%emt 0:00:36]} 22. Qe1 {[%emt 0:01:51]} Rfe8 {[%emt 0:02:21]} 23. g6 {[%emt 0:03:42]} hxg6 {[%emt 0:08:32]} 24. fxg6 {[%emt 0:01:51]} Qxe5 {[%emt 0:01:02]} 25. gxf7+ {[%emt 0:00:26]} Kxf7 {[%emt 0:00:01]} 26. Qf1+ {[%emt 0:00:41]} Ke6 {[%emt 0:04:42]} 27. Rxg7 {[%emt 0:01:39]} Bxe4 {[%emt 0:03:17]} 28. Qf7+ {[%emt 0:00:39]} Kd6 {[%emt 0:00:02]} 29. Qxc7+ {[%emt 0:00:08]} Ke6 {[%emt 0:01:56]} 30. Qf7+ {[%emt 0:00:02]} Kd6 {[%emt 0:00:06]} 31. Qc7+ {[%emt 0:00:05]} Ke6 {[%emt 0:00:08]} 32. Qxc4+ {[%emt 0:03:43]} Qd5 {[%emt 0:01:55]} 33. Qxa6+ {[%emt 0:00:04]} Rd6 {[%emt 0:00:32]} 34. Qe2 {[%emt 0:00:10]} Rf8 {[%emt 0:01:51]} 35. R1g6+ {[%emt 0:00:22]} Rf6 {[%emt 0:00:25]} 36. Rg4 {[%emt 0:00:46]} Ke5 {[%emt 0:02:08]} 37. Re7+ {[%emt 0:01:04]} Rde6 {[%emt 0:00:15]} 38. Rxe6+ {[%emt 0:00:19]} Kxe6 {[%emt 0:00:34]} 39. Qxe4+ {[%emt 0:00:16] Qd8} 1-0

[Event "DEN-chT XtraCon 2018-19"]
[Site "Denmark"]
[Date "2019.03.16"]
[Round "8"]
[White "Norskov Laursen, Niels"]
[Black "Ochsner, Thomas"]
[Result "1/2-1/2"]
[ECO "C54"]
[WhiteElo "2256"]
[BlackElo "2261"]
[Annotator "NA"]
[PlyCount "52"]
[EventDate "2018.10.27"]
[EventType "team-tourn"]
[EventCountry "DEN"]
[SourceTitle "playchess.com"]
[Source "ChessBase"]
[SourceQuality "1"]
[TimeControl "40/5400+30:1800+30"]

1. e4 {[%emt 0:00:00]} e5 {[%emt 0:00:00]} 2. Nf3 {[%emt 0:00:00]} Nc6 {[%emt 0:00:00]} 3. Bc4 {[%emt 0:00:00]} Bc5 {[%emt 0:00:13]} 4. c3 {[%emt 0:00:00]} Nf6 {[%emt 0:00:05]} 5. d3 {[%emt 0:00:00]} a6 {[%emt 0:02:00]} 6. O-O {[%emt 0:01:28]} O-O {[%emt 0:00:18] C54: Giuoco Piano: 4 c3 Nf6, main lines with 5 d4 and 5 d3} 7. Re1 {[%emt 0:05:27]} d6 {[%emt 0:02:09]} 8. a4 {[%emt 0:00:50]} h6 {[%emt 0:08:49]} 9. h3 {[%emt 0:05:23]} Ba7 {[%emt 0:04:17]} (9... a5 10. Nbd2 Be6 11. b3 d5 12. exd5 Nxd5 13. Ne4 Bb6 14. Ra2 f5 15. Ng3 Qf6 16. Nxe5 Nxe5 {½-½ (40) Ding,L (2813)-Anand,V (2773) Wijk aan Zee 2019}) 10. Nbd2 {[%emt 0:06:51]} Be6 {[%emt 0:05:05]} 11. b4 {[%emt 0:04:26]} Qd7 {[%emt 0:06:18]} 12. Bxe6 {[%emt 0:04:30]} fxe6 {[%emt 0:03:40]} 13. Nc4 $146 {[%emt 0:02:39]} ({Predecessor:} 13. Nb3 Rf7 14. Be3 Bxe3 15. Rxe3 Raf8 16. Ra2 Ne7 17. d4 exd4 18. cxd4 Ng6 19. Nbd2 Nf4 20. Qf1 g5 {½-½ (20) Areshchenko,A (2649)-Kovalev,V (2641) Khanty-Mansiysk 2017}) 13... g5 {[%emt 0:06:44]} 14. Be3 {[%emt 0:03:42]} g4 {[%emt 0:07:07]} 15. hxg4 {[%emt 0:05:10]} Nxg4 {[%emt 0:00:03]} 16. Bxa7 {[%emt 0:00:46]} Rxa7 {[%emt 0:02:09]} 17. Ne3 {[%emt 0:04:11]} Qg7 {[%emt 0:02:05]} 18. Nxg4 {[%emt 0:06:42]} Qxg4 {[%emt 0:00:05]} 19. Re3 {[%emt 0:03:18]} Raa8 {[%emt 0:07:47]} 20. Nh2 {[%emt 0:06:34]} Qf4 {[%emt 0:04:24]} 21. Ra2 {[%emt 0:06:34]} Kh7 {[%emt 0:02:08]} 22. Rf3 {[%emt 0:04:25]} Qg5 {[%emt 0:01:15]} 23. Rg3 {[%emt 0:00:40]} Qf4 {[%emt 0:03:06]} 24. Rf3 $11 {[%emt 0:09:18]} (24. Qb3 $16) 24... Qg5 {[%emt 0:00:07]} 25. Rg3 {[%emt 0:01:54]} Qf4 {[%emt 0:00:07]} 26. Rf3 {[%emt 0:01:43]} Rh8 1/2-1/2

[Event "DEN-chT XtraCon 2018-19"]
[Site "Denmark"]
[Date "2019.03.16"]
[Round "8"]
[White "Hove Kristensen, Kaare"]
[Black "Borovnica, Tihomir"]
[Result "1-0"]
[ECO "E91"]
[WhiteElo "2254"]
[BlackElo "2226"]
[Annotator "NA"]
[PlyCount "111"]
[EventDate "2018.10.27"]
[EventType "team-tourn"]
[EventCountry "DEN"]
[SourceTitle "playchess.com"]
[Source "ChessBase"]
[SourceQuality "1"]
[TimeControl "40/5400+30:1800+30"]

1. Nf3 {[%emt 0:00:00]} Nf6 {[%emt 0:00:05]} 2. c4 {[%emt 0:00:39]} g6 {[%emt 0:01:23]} 3. Nc3 {[%emt 0:00:20]} Bg7 {[%emt 0:00:10]} 4. e4 {[%emt 0:00:17]} d6 {[%emt 0:00:04]} 5. d4 {[%emt 0:00:17]} O-O {[%emt 0:00:04]} 6. Be2 {[%emt 0:00:14]} e5 {[%emt 0:03:43]} 7. O-O {[%emt 0:00:51]} Nbd7 {[%emt 0:00:20]} 8. dxe5 {[%emt 0:04:40]} dxe5 {[%emt 0:00:11]} 9. b4 {[%emt 0:00:49] E94: King's Indian: Classical: 6 Be2 e5 7 0-0: Various Black 7th moves} (9. Bg5 h6 10. Bh4 c6 11. Qd6 Re8 12. Rad1 Qb6 13. b3 Bf8 14. Qd3 Nh5 15. Qc2 Nc5 16. Rfe1 Ne6 17. Bf1 Nef4 18. Na4 {0-1 (39) Gunina,V (2502)-Movsesian,S (2659) Minsk 2015}) 9... c6 {[%emt 0:02:00]} 10. a4 {[%emt 0:08:10]} a5 $146 {[%emt 0:00:36]} ({Predecessor:} 10... Nh5 11. Bb2 Nf4 12. Qc2 f5 13. Rfd1 Nxe2+ 14. Qxe2 Qe7 15. c5 Re8 {0-1 (48) Turcan,M (1750)-Kreyderman,K Eforie Nord 1998}) 11. b5 {[%emt 0:01:49]} Nc5 {[%emt 0:12:05]} 12. Qc2 {[%emt 0:15:46]} Re8 {[%emt 0:03:33]} 13. Rd1 {[%emt 0:01:04]} Nfd7 {[%emt 0:02:27]} 14. Ba3 {[%emt 0:04:16]} Qf6 {[%emt 0:00:19]} 15. Ra2 {[%emt 0:10:49]} Bf8 {[%emt 0:01:05]} 16. Qb1 {[%emt 0:01:40]} Be7 {[%emt 0:02:02]} 17. h3 {[%emt 0:06:31]} Nf8 {[%emt 0:02:34]} 18. Qc1 {[%emt 0:04:04]} Nfe6 {[%emt 0:10:43]} 19. Qe3 {[%emt 0:01:21]} Qg7 {[%emt 0:06:20]} 20. Nd5 {[%emt 0:12:27]} cxd5 {[%emt 0:02:18]} 21. exd5 {[%emt 0:00:50]} Nd4 {[%emt 0:02:00]} 22. d6 {[%emt 0:01:33]} Bxd6 {[%emt 0:37:30]} 23. Nxd4 {[%emt 0:08:14]} Bf8 {[%emt 0:00:04]} 24. Nf5 {[%emt 0:05:08]} Bxf5 {[%emt 0:00:15]} 25. Bxc5 {[%emt 0:00:11]} Rac8 {[%emt 0:00:15]} 26. Bxf8 {[%emt 0:02:21]} Qxf8 {[%emt 0:00:06]} 27. Qb6 {[%emt 0:00:19]} Qb4 {[%emt 0:01:59]} 28. Qxb7 {[%emt 0:00:57]} e4 {[%emt 0:00:07]} 29. Qb6 {[%emt 0:01:01]} Qb3 {[%emt 0:01:15]} 30. Rad2 {[%emt 0:01:32]} Qxa4 {[%emt 0:00:21]} 31. Rd8 {[%emt 0:01:52]} Rcxd8 {[%emt 0:00:38]} 32. Rxd8 {[%emt 0:00:08]} Qa1+ {[%emt 0:00:03]} 33. Rd1 {[%emt 0:00:27]} Qb2 {[%emt 0:00:47]} 34. Bf1 {[%emt 0:03:36]} a4 {[%emt 0:00:14]} 35. Qd4 {[%emt 0:00:06]} Qxd4 {[%emt 0:01:53]} 36. Rxd4 {[%emt 0:00:02]} a3 {[%emt 0:03:01]} 37. Rd2 {[%emt 0:00:11]} e3 {[%emt 0:03:32]} 38. Ra2 {[%emt 0:00:08]} Bb1 {[%emt 0:00:38]} 39. Ra1 {[%emt 0:01:38]} a2 {[%emt 0:01:00]} 40. fxe3 {[%emt 0:00:11]} Rxe3 {[%emt 0:00:14]} 41. c5 {[%emt 0:07:52]} Rb3 {[%emt 0:12:00] [#]} 42. b6 $1 {[%emt 0:11:47]} Kf8 {[%emt 0:14:19]} 43. Bc4 {[%emt 0:01:45]} Rb2 {[%emt 0:00:05]} 44. Bxa2 {[%emt 0:05:55]} Bxa2 {[%emt 0:03:46]} 45. Rxa2 {[%emt 0:00:13]} Rxa2 {[%emt 0:00:06]} 46. b7 {[%emt 0:00:24]} Rb2 {[%emt 0:00:05]} 47. c6 {[%emt 0:00:07]} Kg7 {[%emt 0:00:08]} 48. c7 {[%emt 0:00:36]} Rxb7 {[%emt 0:00:03]} 49. c8=Q {[%emt 0:00:08]} Rb1+ {[%emt 0:00:45]} 50. Kh2 {[%emt 0:00:07]} h5 {[%emt 0:00:07]} 51. Qc3+ {[%emt 0:03:29]} Kg8 {[%emt 0:00:11]} 52. Kg3 {[%emt 0:00:27]} Rf1 {[%emt 0:01:32]} 53. Qd3 {[%emt 0:00:59]} Rc1 {[%emt 0:01:12]} 54. Kh4 $18 {[%emt 0:00:23]} Kh7 {[%emt 0:00:13]} 55. Kg5 {[%emt 0:00:45]} Rg1 {[%emt 0:01:37]} 56. Qf3 {[%emt 0:01:57]} 1-0